bitfinex/quotes_SOLUSD_20260311
["timestamp","ask_amount","ask_price","bid_price","bid_amount"]
[1773243130037,3.9203964,84.677,84.63,7.74544748]
[1773243130207,3.9203964,84.669,84.637,1e-08]
[1773243130409,3.9203964,84.659,84.62,7.62570582]
[1773243130607,3.9203964,84.659,84.582,1.18228464]
[1773243130608,3.9203964,84.654,84.567,1.03774241]
[1773243130835,3.9203964,84.649,84.61,7.74544748]
[1773243131616,3.9203964,84.639,84.6,7.74544748]
[1773243131832,3.9203964,84.67,84.62,7.74544748]
[1773243132134,3.9203964,84.67,84.579,2.88]
[1773243132135,11.81223274,84.658,84.63,7.74544748]
[1773243132720,11.81149443,84.664,84.621,1.02894121]
[1773243132922,11.81149443,84.664,84.64,7.74544748]
[1773243133229,29.52162651,84.684,84.65,7.74544748]
[1773243133230,11.81041915,84.671,84.65,7.74544748]
[1773243133435,11.81041915,84.671,84.64,7.74544748]
[1773243133744,11.80967769,84.677,84.65,7.74544748]
[1773243133966,11.80553915,84.706,84.67,7.74544748]
[1773243134136,11.80553915,84.706,84.68,7.74544748]
[1773243134337,3.9203964,84.723,84.69,7.74544748]
[1773243134941,3.9203964,84.723,84.7,7.74544748]
[1773243135349,3.9203964,84.76,84.71,7.74544748]
[1773243135573,3.9203964,84.778,84.75,7.74544748]
[1773243135753,11.79297708,84.797,84.77,7.74544748]
[1773243135959,11.79106237,84.81,84.78,7.74544748]
[1773243136164,11.79106237,84.81,84.738,1.00451947]
[1773243136165,3.9203964,84.809,84.738,1.00451947]
[1773243136481,3.9203964,84.809,84.75,7.74544748]
[1773243136482,3.9203964,84.779,84.75,7.74544748]
[1773243136955,135.59721728,84.81,84.77,7.74544748]
[1773243136956,3.9203964,84.797,84.77,7.74544748]
[1773243137153,1.47390017,84.809,84.74,1.00451947]
[1773243137154,7.74544748,84.78,84.74,7.74544748]
[1773243137371,7.74544748,84.78,84.738,11.80108097]
[1773243137372,3.9203964,84.787,84.75,7.74544748]
[1773243137548,7.74544748,84.78,84.74,7.74544748]
[1773243137749,7.74544748,84.78,84.726,30.50543993]
[1773243137750,3.9203964,84.779,84.73,11.80206274]
[1773243137981,3.9203964,84.787,84.75,7.74544748]
[1773243138188,11.79440001,84.786,84.76,7.74544748]
[1773243138476,3.9203964,84.779,84.74,7.74544748]
[1773243138666,3.9203964,84.777,84.74,7.74544748]
[1773243138967,7.74544748,84.77,84.74,7.74544748]
[1773243139166,3.9203964,84.777,84.75,7.74544748]
[1773243139471,3.9203964,84.783,84.736,11.80135951]
[1773243139669,1.47431739,84.785,84.75,7.74544748]
[1773243139974,11.79440001,84.786,84.75,7.74544748]
[1773243140170,3.66806089,84.779,84.74,7.74544748]
[1773243140356,3.66806089,84.769,84.73,7.74544748]
[1773243140555,1.47443912,84.778,84.74,7.74544748]
[1773243140880,11.79328726,84.794,84.76,7.74544748]
[1773243141056,11.79328726,84.794,84.77,7.74544748]
[1773243141057,3.66806089,84.793,84.77,7.74544748]
[1773243141574,3.66806089,84.793,84.745,0.97553729]
[1773243141575,15.4596794,84.806,84.78,7.74544748]
[1773243142151,3.66806089,84.805,84.78,7.74544748]
[1773243142352,3.66806089,84.817,84.79,7.74544748]
[1773243142648,1.47344845,84.835,84.768,0.9644051]
[1773243142649,3.66806089,84.849,84.781,0.9644051]
[1773243142854,29.46080911,84.859,84.81,7.74544748]
[1773243142855,3.66806089,84.839,84.81,7.74544748]
[1773243143049,4.55484124,84.839,84.81,7.74544748]
[1773243143253,4.55484124,84.839,84.768,2.92]
[1773243143254,3.66806089,84.829,84.769,0.95893473]
[1773243143466,3.66806089,84.827,84.8,7.74544748]
[1773243143661,3.66806089,84.827,84.79,7.74544748]
[1773243144061,11.78883832,84.826,84.79,7.74544748]
[1773243144278,3.66806089,84.825,84.79,19.53927701]
[1773243144464,3.66806089,84.819,84.78,7.74544748]
[1773243144781,41.26093413,84.826,84.729,1.18023345]
[1773243144782,3.66806089,84.789,84.729,1.18023345]
[1773243144965,4.55484124,84.789,84.75,7.74544748]
[1773243145158,3.66806089,84.789,84.73,0.94818175]
[1773243145479,3.66806089,84.789,84.75,7.74544748]
[1773243146083,3.66806089,84.789,84.76,7.74544748]
[1773243146277,0.88678035,84.817,84.732,41.3067082]
[1773243146278,3.66806089,84.779,84.74,7.74544748]
[1773243146471,3.66806089,84.779,84.75,7.74544748]
[1773243146790,3.66806089,84.779,84.74,7.74544748]
[1773243146961,41.27407162,84.799,84.75,7.74544748]
[1773243146962,7.74544748,84.79,84.75,7.74544748]
[1773243147161,4.55484124,84.798,84.76,7.74544748]
[1773243147674,4.55484124,84.798,84.732,11.80191663]
[1773243147675,3.66806089,84.769,84.732,11.80191663]
[1773243148257,3.66806089,84.79,84.76,7.79652784]
[1773243148486,11.79036726,84.815,84.78,7.79652784]
[1773243148795,11.79008925,84.817,84.78,7.79652784]
[1773243148968,11.79008925,84.817,84.79,7.79652784]
[1773243149296,7.79652784,84.81,84.77,7.79652784]
[1773243149585,3.66806089,84.813,84.78,7.79652784]
[1773243149896,3.66806089,84.809,84.755,0.92740697]
[1773243150061,11.46458873,84.8,84.76,7.79652784]
[1773243150266,3.66806089,84.799,84.77,7.79652784]
[1773243150563,15.46065278,84.799,84.77,7.79652784]
[1773243150768,15.45912159,84.811,84.78,7.79652784]
[1773243150974,3.66806089,84.81,84.78,7.79652784]
[1773243151187,3.66806089,84.81,84.761,41.29257559]
[1773243151188,4.55484124,84.809,84.77,7.79652784]
[1773243151400,4.55484124,84.809,84.749,29.49857846]
[1773243151401,3.66806089,84.779,84.722,1.18033096]
[1773243151681,3.66806089,84.779,84.676,47.23866757]
[1773243151682,3.66806089,84.783,84.75,7.79652784]
[1773243151867,7.79652784,84.78,84.74,7.79652784]
[1773243152282,3.66806089,84.799,84.76,7.79652784]
[1773243152490,3.66806089,84.799,84.73,135.72524488]
[1773243152491,3.66806089,84.769,84.731,1.18020559]
[1773243152702,3.66806089,84.779,84.74,7.79652784]
[1773243152880,4.55484124,84.779,84.74,7.79652784]
[1773243153081,3.66806089,84.779,84.74,7.79652784]
[1773243153588,3.66806089,84.792,84.76,7.79652784]
[1773243154097,11.7918202,84.805,84.77,7.79652784]
[1773243154400,3.66806089,84.789,84.75,7.79652784]
[1773243154599,3.66806089,84.789,84.751,11.7992708]
[1773243154903,4.55484124,84.789,84.746,11.79989703]
[1773243155103,4.55484124,84.789,84.75,7.79652784]
[1773243155302,3.66806089,84.789,84.75,7.79652784]
[1773243155495,3.66806089,84.789,84.76,7.79652784]
[1773243155692,11.46458873,84.8,84.76,7.79652784]
[1773243156085,3.66806089,84.813,84.78,7.79652784]
[1773243156423,41.26774512,84.812,84.77,7.79652784]
[1773243156906,41.26774512,84.812,84.763,11.79760036]
[1773243156907,3.66806089,84.809,84.78,7.79652784]
[1773243157486,11.79078432,84.812,84.763,41.29160128]
[1773243157487,3.66806089,84.807,84.77,7.79652784]
[1773243157681,47.14869594,84.838,84.763,11.79760036]
[1773243157682,3.66806089,84.819,84.78,7.79652784]
[1773243157890,3.66806089,84.817,84.77,7.79652784]
[1773243158092,3.66806089,84.809,84.77,7.79652784]
[1773243158298,3.66806089,84.799,84.76,7.79652784]
[1773243158500,0.88678035,84.805,84.77,7.79652784]
[1773243159104,4.55484124,84.805,84.77,7.79652784]
[1773243159299,3.66806089,84.805,84.755,1.17987139]
[1773243159503,3.66806089,84.805,84.77,7.79652784]
[1773243159801,11.79161851,84.806,84.77,7.79652784]
[1773243160005,3.66806089,84.805,84.77,7.79652784]
[1773243160229,11.7904618,84.815,84.772,0.87498737]
[1773243160515,11.7904618,84.815,84.751,47.19661512]
[1773243160516,3.54375615,84.799,84.75,7.79652784]
[1773243160809,7.79652784,84.8,84.75,7.79652784]
[1773243160810,3.54375615,84.797,84.75,7.79652784]
[1773243160998,3.54375615,84.795,84.76,7.79652784]
[1773243161200,0.88678035,84.794,84.749,41.29842239]
[1773243161412,0.88678035,84.794,84.76,7.79652784]
[1773243161619,0.88678035,84.794,84.74,7.79652784]
[1773243161620,7.79652784,84.78,84.74,7.79652784]
[1773243161909,3.54375615,84.778,84.75,7.79652784]
[1773243162115,3.54375615,84.799,84.738,0.86180991]
[1773243162319,3.54375615,84.796,84.751,11.7992708]
[1773243162619,3.54375615,84.794,84.76,7.79652784]
[1773243162810,0.88678035,84.793,84.76,7.79652784]
[1773243163210,3.54375615,84.794,84.77,7.79652784]
[1773243163700,3.54375615,84.794,84.751,41.29744781]
[1773243163906,3.54375615,84.794,84.76,7.79652784]
[1773243164310,8.68330819,84.81,84.737,94.40966906]
[1773243164311,3.54375615,84.805,84.771,41.28770451]
[1773243164621,3.54375615,84.805,84.771,11.796487]
[1773243166228,0.88678035,84.818,84.791,11.79370452]
[1773243166397,3.54375615,84.829,84.8,7.79652784]
[1773243166597,3.54375615,84.827,84.791,11.79370452]
[1773243166800,3.54375615,84.825,84.791,11.79370452]
[1773243167004,3.54375615,84.825,84.8,7.79652784]
[1773243167204,3.54375615,84.825,84.791,11.79370452]
[1773243167617,3.54375615,84.823,84.791,11.79370452]
[1773243167827,3.54375615,84.823,84.79,7.79652784]
[1773243167997,3.54375615,84.823,84.791,11.79370452]
[1773243168196,3.54375615,84.823,84.791,41.27796582]
[1773243168400,11.78939426,84.822,84.8,7.79652784]
[1773243168601,11.78885318,84.826,84.8,7.79652784]
[1773243168805,11.78772661,84.834,84.8,7.79652784]
[1773243169008,15.33148276,84.834,84.8,7.79652784]
[1773243169216,3.54375615,84.845,84.81,7.79652784]
[1773243169415,3.54375615,84.857,84.83,7.79652784]
[1773243169802,3.54375615,84.857,84.82,7.79652784]
[1773243170416,3.51658472,84.855,84.821,11.78953325]
[1773243170623,3.51658472,84.849,84.81,7.79652784]
[1773243170799,3.51658472,84.847,84.81,7.79652784]
[1773243171001,3.51658472,84.839,84.804,11.7918966]
[1773243171311,41.24634675,84.856,84.79,7.79652784]
[1773243171312,3.51658472,84.829,84.79,7.79652784]
[1773243171718,3.51658472,84.829,84.8,7.79652784]
[1773243172414,3.51658472,84.842,84.811,11.79092334]
[1773243172722,11.78675404,84.841,84.811,11.79092334]
[1773243173105,11.78480938,84.855,84.82,7.79652784]
[1773243173416,7.79652784,84.85,84.811,41.2682317]
[1773243173616,7.79652784,84.85,84.811,11.79092334]
[1773243173805,11.78480938,84.855,84.82,7.79652784]
[1773243174318,4.82477569,84.909,84.811,41.2682317]
[1773243174319,7.79652784,84.87,84.83,7.79652784]
[1773243174824,11.78137388,84.88,84.85,7.79652784]
[1773243175126,3.51658472,84.879,84.84,7.79652784]
[1773243175331,7.79652784,84.86,84.827,11.78867291]
[1773243175520,3.51658472,84.859,84.82,7.79652784]
[1773243175723,3.51658472,84.859,84.81,40.81519914]
[1773243176027,3.12,84.872,84.811,11.79092334]
[1773243176028,3.51658472,84.849,84.811,11.79092334]
[1773243177026,3.51658472,84.859,84.821,11.78953325]
[1773243177323,11.78369843,84.863,84.83,7.79652784]
[1773243177527,11.78369843,84.863,84.831,3.54119564]
[1773243177720,3.51658472,84.868,84.831,3.54119564]
[1773243177926,3.51658472,84.883,84.84,11.33772348]
[1773243178131,7.79652784,84.88,84.84,11.33772348]
[1773243178432,3.51658472,84.879,84.85,7.79652784]
[1773243178604,11.78161596,84.878,84.841,11.78675404]
[1773243178808,3.51658472,84.869,84.831,3.54119564]
[1773243179107,3.51658472,84.869,84.83,19.58481028]
[1773243179519,3.51658472,84.869,84.83,7.79652784]
[1773243179720,3.51658472,84.869,84.83,19.58481028]
[1773243180311,3.51658472,84.869,84.83,49.05551639]
[1773243180605,3.51658472,84.859,84.808,3.54119564]
[1773243180801,3.51658472,84.849,84.81,7.79652784]
[1773243181603,3.51658472,84.849,84.82,7.79652784]
[1773243181925,3.51658472,84.859,84.82,7.79652784]
[1773243182329,3.51658472,84.859,84.821,3.54119564]
[1773243182826,3.51658472,84.859,84.83,7.79652784]
[1773243183031,15.30097747,84.858,84.822,41.26287991]
[1773243183234,3.51658472,84.857,84.822,41.26287991]
[1773243183436,3.51658472,84.839,84.8,7.79652784]
[1773243183732,3.51658472,84.839,84.765,47.18886182]
[1773243183733,3.51658472,84.839,84.772,6.46119564]
[1773243183942,7.79652784,84.8,84.761,3.54119564]
[1773243184305,7.79652784,84.8,84.76,7.79652784]
[1773243184306,3.51658472,84.799,84.76,7.79652784]
[1773243184603,3.51658472,84.789,84.76,7.79652784]
[1773243184826,3.51658472,84.789,84.725,47.21119853]
[1773243184827,3.51658472,84.803,84.77,7.79652784]
[1773243185017,3.51658472,84.803,84.761,11.79787874]
[1773243185018,3.51658472,84.826,84.781,3.54119564]
[1773243185203,3.51658472,84.819,84.78,7.79652784]
[1773243185807,3.51658472,84.829,84.79,7.79652784]
[1773243186422,3.51658472,84.829,84.789,3.54119564]
[1773243186610,3.51658472,84.839,84.8,7.79652784]
[1773243186907,3.51658472,84.837,84.801,11.79231376]
[1773243187314,3.51658472,84.837,84.778,1.17955129]
[1773243187315,3.51658472,84.829,84.78,7.79652784]
[1773243187607,3.51658472,84.819,84.79,7.79652784]
[1773243187808,3.51658472,84.819,84.779,15.33656949]
[1773243188026,3.51658472,84.819,84.779,11.79537385]
[1773243188323,3.51658472,84.819,84.79,7.79652784]
[1773243188521,3.51658472,84.819,84.78,7.79652784]
[1773243189026,3.51658472,84.817,84.78,7.79652784]
[1773243189538,41.26482585,84.818,84.769,11.79676532]
[1773243189539,11.78995024,84.818,84.79,7.79652784]
[1773243189904,11.78883832,84.826,84.79,7.79652784]
[1773243190131,3.51658472,84.825,84.79,7.79652784]
[1773243190515,3.51658472,84.819,84.78,7.79652784]
[1773243190725,3.51658472,84.819,84.79,7.79652784]
[1773243191321,3.51658472,84.83,84.8,7.79652784]
[1773243191510,41.25947494,84.829,84.8,7.79652784]
[1773243191716,3.51658472,84.828,84.791,11.79370452]
[1773243192130,3.51658472,84.828,84.79,7.79652784]
[1773243192335,3.51658472,84.828,84.631,25.88469222]
[1773243192336,3.51658472,84.819,84.774,11.79598399]
[1773243192531,3.51658472,84.819,84.78,7.79652784]
[1773243192740,3.51658472,84.819,84.774,44.8273535]
[1773243192940,3.51658472,84.819,84.79,7.79652784]
[1773243193141,41.25947494,84.829,84.775,4.72078868]
[1773243193142,3.51658472,84.828,84.775,4.72078868]
[1773243193321,3.51658472,84.819,84.78,7.79652784]
[1773243193520,3.51658472,84.819,84.771,11.79638224]
[1773243193823,3.51658472,84.819,84.78,7.79652784]
[1773243194019,3.51658472,84.819,84.79,7.79652784]
[1773243194530,41.26044773,84.827,84.79,7.79652784]
[1773243194721,11.78869935,84.827,84.8,7.79652784]
[1773243194917,11.78869935,84.827,84.8,11.33772348]
[1773243195241,29.46840838,84.837,84.8,7.79652784]
[1773243195825,29.46840838,84.837,84.801,11.79231376]
[1773243196027,11.7870319,84.839,84.81,7.79652784]
[1773243196225,11.7870319,84.839,84.802,3.54119564]
[1773243196444,11.7870319,84.839,84.81,7.79652784]
[1773243197137,3.51658472,84.838,84.8,7.79652784]
[1773243197338,3.51658472,84.827,84.79,7.79652784]
[1773243197650,3.51658472,84.827,84.8,7.79652784]
[1773243197936,3.51658472,84.827,84.792,3.54119564]
[1773243198248,77.86010195,84.989,84.821,3.54119564]
[1773243198249,3.51658472,84.865,84.821,3.54119564]
[1773243198451,3.51658472,84.879,84.85,7.79652784]
[1773243198623,3.51658472,84.879,84.841,3.54119564]
[1773243198819,3.51658472,84.879,84.85,7.79652784]
[1773243199024,3.51658472,84.869,84.812,3.54119564]
[1773243199240,3.51658472,84.869,84.83,7.79652784]
[1773243199444,3.51658472,84.869,84.84,7.79652784]
[1773243199740,11.78243506,84.873,84.84,7.79652784]
[1773243200350,11.78243506,84.873,84.84,11.28716142]
[1773243200728,11.78243506,84.873,84.84,3.49063358]
[1773243200938,11.78243506,84.873,84.824,41.26190699]
[1773243200939,3.66638554,84.869,84.83,11.28716142]
[1773243201252,11.78243506,84.873,84.824,11.78911628]
[1773243201253,3.66638554,84.859,84.824,11.78911628]
[1773243201546,15.45077829,84.858,84.83,7.79652784]
[1773243201727,11.78258769,84.871,84.831,3.49063358]
[1773243201925,3.66638554,84.869,84.831,3.49063358]
[1773243202125,3.1,84.886,84.851,3.49063358]
[1773243202423,0.2,84.89,84.88,7.79652784]
[1773243202624,3.66638554,84.888,84.86,7.79652784]
[1773243202848,3.66638554,84.888,84.85,7.79652784]
[1773243203340,11.78161596,84.878,84.841,11.78675404]
[1773243203539,11.78161596,84.878,84.85,7.79652784]
[1773243203743,3.66638554,84.877,84.85,7.79652784]
[1773243204239,3.66638554,84.877,84.84,7.79652784]
[1773243204543,3.66638554,84.877,84.841,3.49063358]
[1773243205536,3.66638554,84.869,84.821,3.49063358]
[1773243205748,3.66638554,84.859,84.821,3.49063358]
[1773243206228,3.66638554,84.849,84.81,7.79652784]
[1773243206429,147.2736698,84.876,84.792,3.49063358]
[1773243206430,3.66638554,84.839,84.792,3.49063358]
[1773243206628,3.66638554,84.839,84.8,7.79652784]
[1773243206830,7.79652784,84.86,84.821,3.49063358]
[1773243207044,3.66638554,84.861,84.821,3.49063358]
[1773243207722,11.78286535,84.869,84.831,3.49063358]
[1773243207929,11.78225268,84.874,84.841,3.49063358]
[1773243208129,3.66638554,84.869,84.831,3.49063358]
[1773243208633,41.23768072,84.874,84.84,7.79652784]
[1773243208634,11.78225268,84.874,84.84,7.79652784]
[1773243208990,3.1,84.888,84.841,3.49063358]
[1773243208991,3.66638554,84.879,84.841,3.49063358]
[1773243209252,11.78142291,84.88,84.841,3.49063358]
[1773243209454,19.57795075,84.88,84.841,3.49063358]
[1773243209634,7.97624609,84.89,84.853,3.49063358]
[1773243209837,11.78036684,84.887,84.86,7.77624609]
[1773243210131,11.78036684,84.887,84.853,3.49063358]
[1773243210334,0.2,84.89,84.86,7.77624609]
[1773243210532,0.2,84.89,84.861,3.49063358]
[1773243210750,0.2,84.89,84.871,3.49063358]
[1773243210950,11.77796445,84.905,84.881,3.49063358]
[1773243211131,3.66638554,84.899,84.855,3.49063358]
[1773243211445,3.66638554,84.879,84.844,2.9]
[1773243211656,7.77624609,84.88,84.83,19.56452853]
[1773243211657,3.66638554,84.877,84.83,19.56452853]
[1773243211846,11.78161596,84.878,84.83,19.56452853]
[1773243211847,3.66638554,84.869,84.83,19.56452853]
[1773243212256,15.4469011,84.886,84.86,7.77624609]
[1773243212448,3.66638554,84.879,84.832,3.49063358]
[1773243212752,3.66638554,84.879,84.786,47.1773263]
[1773243212753,3.66638554,84.849,84.81,11.26687967]
[1773243212954,3.66638554,84.849,84.811,3.49063358]
[1773243213146,11.44263163,84.86,84.82,7.77624609]
[1773243213349,11.44263163,84.86,84.821,3.49063358]
[1773243213962,3.66638554,84.858,84.822,11.78939426]
[1773243214259,3.1,84.878,84.841,3.49063358]
[1773243214554,41.2361417,84.877,84.841,3.49063358]
[1773243214761,11.44263163,84.87,84.831,3.49063358]
[1773243215153,11.78175477,84.877,84.841,3.49063358]
[1773243215656,11.78124602,84.881,84.851,3.49063358]
[1773243215956,11.78124602,84.881,84.816,2.9]
[1773243215957,3.66638554,84.859,84.82,7.77624609]
[1773243216164,3.66638554,84.849,84.81,7.77624609]
[1773243217261,3.66638554,84.849,84.81,11.26687967]
[1773243217755,3.66638554,84.849,84.811,3.49063358]
[1773243217961,11.78578163,84.848,84.812,44.7583787]
[1773243218131,11.78578163,84.848,84.8,7.77624609]
[1773243218132,7.77624609,84.84,84.8,7.77624609]
[1773243218331,3.66638554,84.839,84.802,3.49063358]
[1773243218553,3.66638554,84.839,84.81,7.77624609]
[1773243218754,41.25023571,84.848,84.811,3.49063358]
[1773243218755,11.78578163,84.848,84.811,3.49063358]
[1773243218958,3.66638554,84.847,84.811,3.49063358]
[1773243219564,11.78527694,84.852,84.82,7.77624609]
[1773243219750,11.78527694,84.852,84.821,3.49063358]
[1773243220066,40.33667192,84.86,84.823,3.68932337]
[1773243220067,11.78425387,84.859,84.823,3.68932337]
[1773243220956,7.77624609,84.85,84.81,7.77624609]
[1773243221137,3.52113063,84.849,84.81,7.77624609]
[1773243221338,3.52113063,84.849,84.811,3.68932337]
[1773243222138,3.52113063,84.847,84.812,11.79078432]
[1773243222355,11.78578163,84.848,84.802,11.79217471]
[1773243222356,3.52113063,84.839,84.802,11.79217471]
[1773243222662,3.52113063,84.839,84.803,3.68932337]
[1773243222957,3.52113063,84.839,84.81,7.77624609]
[1773243223158,3.52113063,84.839,84.803,3.68932337]
[1773243223358,11.78578163,84.848,84.811,3.68932337]
[1773243223858,7.77624609,84.87,84.831,3.68932337]
[1773243224057,3.52113063,84.872,84.841,3.68932337]
[1773243224362,3.52113063,84.868,84.83,40.93605512]
[1773243224665,7.77624609,84.86,84.83,3.68932337]
[1773243224858,7.77624609,84.86,84.83,15.47752335]
[1773243225843,3.52113063,84.866,84.831,3.68932337]
[1773243226044,11.78314303,84.867,84.84,7.77624609]
[1773243226258,11.78147716,84.879,84.85,7.77624609]
[1773243226461,3.52113063,84.889,84.85,11.46556946]
[1773243226643,3.52113063,84.889,84.851,3.68932337]
[1773243226960,44.75144315,84.889,84.851,3.68932337]
[1773243227155,3.52113063,84.888,84.851,3.68932337]
[1773243227541,41.23031252,84.889,84.851,3.68932337]
[1773243228063,11.77897923,84.897,84.861,3.68932337]
[1773243228739,11.77897923,84.897,84.871,3.68932337]
[1773243228956,3.08,84.899,84.871,3.68932337]
[1773243229253,3.52113063,84.897,84.86,11.46556946]
[1773243229637,11.77884049,84.898,84.871,3.68932337]
[1773243230039,11.29737672,84.91,84.871,3.68932337]
[1773243230264,3.67851961,84.905,84.871,3.68932337]
[1773243230450,3.67851961,84.905,84.872,11.78244886]
[1773243231253,3.67851961,84.905,84.88,7.77624609]
[1773243231659,3.67851961,84.905,84.873,3.51100665]
[1773243231867,11.77773066,84.906,84.873,3.51100665]
[1773243232258,11.77773066,84.906,84.875,3.51100665]
[1773243232442,11.77773066,84.906,84.88,7.77624609]
[1773243232945,11.77773066,84.906,84.879,3.51100665]
[1773243233152,3.67851961,84.899,84.86,7.77624609]
[1773243233343,3.67851961,84.879,84.845,3.51100665]
[1773243233543,3.67851961,84.889,84.851,3.51100665]
[1773243234359,7.77624609,84.89,84.85,7.77624609]
[1773243234360,7.77624609,84.89,84.862,3.51100665]
[1773243236156,3.67851961,84.898,84.862,3.51100665]
[1773243236475,3.67851961,84.899,84.86,7.77624609]
[1773243236777,7.77624609,84.89,84.86,3.51100665]
[1773243237058,11.77814682,84.903,84.871,3.51100665]
[1773243237242,3.67851961,84.899,84.855,11.7847148]
[1773243237557,3.67851961,84.899,84.86,7.77624609]
[1773243237757,3.67851961,84.899,84.861,3.51100665]
[1773243238054,41.22351388,84.903,84.871,3.51100665]
[1773243238257,29.44536706,84.903,84.873,3.51100665]
[1773243238452,11.77745324,84.908,84.88,11.28725274]
[1773243238659,11.77745324,84.908,84.881,3.51100665]
[1773243239149,41.22108634,84.908,84.881,3.51100665]
[1773243239844,3.67851961,84.899,84.86,7.77624609]
[1773243240043,3.67851961,84.899,84.87,7.77624609]
[1773243240245,41.22108634,84.908,84.873,3.51100665]
[1773243240675,11.77745324,84.908,84.873,3.51100665]
[1773243240860,11.77745324,84.908,84.88,7.77624609]
[1773243241049,11.77745324,84.908,84.881,3.51100665]
[1773243241662,11.77592764,84.919,84.891,3.51100665]
[1773243242161,7.77624609,84.95,84.911,3.51100665]
[1773243242359,3.67851961,84.947,84.911,3.51100665]
[1773243242772,11.4547657,84.93,84.891,3.51100665]
[1773243242972,3.67851961,84.93,84.9,7.77624609]
[1773243243177,3.67851961,84.947,84.911,3.51100665]
[1773243243368,11.7710636,84.955,84.921,3.51100665]
[1773243243570,47.26990574,84.98,84.931,3.51100665]
[1773243243571,11.76927513,84.967,84.931,3.51100665]
[1773243243766,11.76927513,84.967,84.895,11.77916585]
[1773243243767,11.76927513,84.967,84.941,3.51100665]
[1773243243960,11.76927513,84.967,84.931,3.51100665]
[1773243244155,0.2,84.98,84.96,7.77624609]
[1773243244369,0.2,84.98,84.951,3.51100665]
[1773243244680,41.1866461,84.979,84.951,3.51100665]
[1773243244879,0.2,84.98,84.96,7.77624609]
[1773243245180,0.2,84.98,84.96,11.28725274]
[1773243245473,11.76761317,84.979,84.952,3.51100665]
[1773243245675,11.76761317,84.979,84.941,3.51100665]
[1773243245877,0.2,84.98,84.961,3.51100665]
[1773243246178,0.2,84.98,84.96,7.77624609]
[1773243246179,1e-08,84.98,84.96,7.77624609]
[1773243246362,1e-08,84.98,84.95,7.77624609]
[1773243246673,3.67851961,84.979,84.947,3.51100665]
[1773243246966,3.67851961,84.979,84.927,2.88]
[1773243246967,3.67851961,84.979,84.95,7.77624609]
[1773243247172,1e-08,84.98,84.95,11.28725274]
[1773243247357,1e-08,84.98,84.951,3.51100665]
[1773243247552,1e-08,84.98,84.95,7.77624609]
[1773243247553,3.67851961,84.979,84.941,3.51100665]
[1773243247779,3.67851961,84.979,84.94,7.77624609]
[1773243247780,1e-08,84.98,84.951,3.51100665]
[1773243247984,1e-08,84.98,84.97,7.77624609]
[1773243248474,1e-08,84.98,84.971,11.76872109]
[1773243248659,1e-08,84.98,84.951,3.51100665]
[1773243248854,1e-08,84.98,84.961,3.51100665]
[1773243249263,1e-08,84.98,84.971,3.51100665]
[1773243249856,1e-08,84.98,84.961,3.51100665]
[1773243250065,1e-08,84.98,84.941,29.43214588]
[1773243250066,11.76152081,85.024,84.971,3.51100665]
[1773243250379,11.96202336,85.02,85.001,3.51100665]
[1773243250583,0.2,85.02,85.002,11.76442907]
[1773243250882,1e-08,85.02,85.011,3.51100665]
[1773243251074,3.67851961,85.073,85.011,3.51100665]
[1773243251387,7.17846394,85.11,85.002,135.29093431]
[1773243251388,3.67851961,85.069,85.031,3.51100665]
[1773243251557,3.67851961,85.069,85.009,3.51100665]
[1773243251753,3.67851961,85.039,85.0,7.77624609]
[1773243251958,182.19860821,85.072,85.01,11.28725274]
[1773243251959,3.67851961,85.049,85.01,11.28725274]
[1773243252154,3.67851961,85.049,85.011,3.51100665]
[1773243252559,3.67851961,85.076,85.04,7.77624609]
[1773243252774,58.75069306,85.106,85.021,41.16630008]
[1773243252775,15.43285402,85.075,85.041,3.51100665]
[1773243252959,3.67851961,85.074,85.041,3.51100665]
[1773243253584,7.77624609,85.07,85.031,3.51100665]
[1773243253764,3.67851961,85.074,85.04,7.77624609]
[1773243253967,3.67851961,85.059,85.02,7.77624609]
[1773243254167,3.67851961,85.059,85.03,7.77624609]
[1773243254367,7.77624609,85.07,85.031,3.51100665]
[1773243254683,11.75516345,85.069,85.04,7.77624609]
[1773243254983,11.75378177,85.079,85.05,11.28725274]
[1773243255165,11.75378177,85.079,85.05,3.51100665]
[1773243255570,11.75321335,85.084,85.06,7.77624609]
[1773243255780,11.75321335,85.084,85.04,7.77624609]
[1773243255781,3.67851961,85.079,85.04,7.77624609]
[1773243255981,3.67851961,85.079,85.04,11.28725274]
[1773243256575,3.67851961,85.077,85.04,11.28725274]
[1773243256776,3.67851961,85.059,85.02,7.77624609]
[1773243257082,3.67851961,85.063,85.03,7.77624609]
[1773243257277,3.08,85.064,85.041,3.51100665]
[1773243257579,3.67851961,85.077,85.041,3.51100665]
[1773243257968,11.75391993,85.078,85.05,11.28725274]
[1773243258276,11.75391993,85.078,85.051,3.51100665]
[1773243258481,3.67851961,85.087,85.052,11.75751305]
[1773243258682,11.75253854,85.088,85.06,7.77624609]
[1773243258877,11.75253854,85.088,85.06,11.28725274]
[1773243259075,3.67851961,85.099,85.07,7.77624609]
[1773243259076,11.75115748,85.098,85.07,7.77624609]
[1773243259275,3.67851961,85.111,85.08,7.77624609]
[1773243259666,3.67851961,85.11,85.08,7.77624609]